lending/lending_fUSD_20260124
["ID","MTS","AMOUNT","RATE_DAILY","PERIOD"]
[403172760,1769242245988,-500.0,0.00016438,2]
[403172761,1769242245998,-152.0,0.00016438,6]
[403172762,1769242246008,-2569.79,0.00016438,2]
[403172763,1769242246019,-556.66073596,0.00016438,2]
[403172764,1769242246030,-1000.0,0.00016438,2]
[403172765,1769242246040,-151.0,0.00016438,2]
[403172766,1769242246050,-165.24,0.0001644,2]
[403172767,1769242246060,-250.0,0.00016456,2]
[403172768,1769242246070,-200.0,0.00016485,2]
[403172769,1769242246080,-200.0,0.00016485,2]
[403172770,1769242246090,-150.0,0.00016488,2]
[403172771,1769242246100,-500.0,0.00016493,2]
[403172772,1769242246110,-756.62051645,0.000165,2]
[403172773,1769242246119,-162.31226797,0.000165,2]
[403172774,1769242246129,-1000.0,0.00016515,2]
[403172775,1769242246139,-500.0,0.00016548,2]
[403172776,1769242246150,-150.0,0.0001656,2]
[403172777,1769242246160,-1000.0,0.0001657,2]
[403172778,1769242246170,-500.0,0.00016602,2]
[403172779,1769242246180,-200.0,0.00016619,2]
[403172780,1769242246191,-150.0,0.00016632,2]
[403172781,1769242246202,-823.0,0.00016638,2]
[403172782,1769242246213,-200.0,0.0001665,2]
[403172783,1769242246224,-174.50686631,0.0001665,2]
[403172784,1769242246237,-152.0,0.00016656,7]
[403172785,1769242246249,-454.14477787,0.00016657,2]
[403172786,1769242246260,-1000.0,0.00016671,2]
[403172787,1769242246269,-754.92,0.00016698,2]
[403172788,1769242246279,-150.0,0.00016704,2]
[403172789,1769242246288,-867.75,0.00016712,2]
[403172790,1769242246299,-1000.0,0.00016712,2]
[403172791,1769242246308,-166.61,0.00016712,2]
[403172792,1769242246321,-858.0,0.0001672,2]
[403172793,1769242246330,-835.0,0.0001672,2]
[403172794,1769242246342,-331.15868013,0.0001674,2]
[403172795,1769242246352,-4721.62468318,0.00016744,2]
[403172796,1769242246361,-225.18697532,0.00016758,2]
[403172797,1769242246371,-3292.0,0.00016769,2]
[403172798,1769242246381,-150.0,0.00016776,2]
[403172799,1769242246391,-1000.0,0.00016797,2]
[403172800,1769242246401,-150.0,0.00016848,2]
[403172801,1769242246411,-152.0,0.00016873,8]
[403172802,1769242246420,-439.049769,0.00016886,2]
[403172803,1769242246430,-439.049769,0.00016886,2]
[403172804,1769242246439,-439.049769,0.00016886,2]
[403172805,1769242246449,-439.049769,0.00016886,2]
[403172806,1769242246459,-151.0,0.00016886,2]
[403172807,1769242246468,-151.0,0.00016886,2]
[403172808,1769242246478,-151.0,0.00016886,2]
[403172809,1769242246487,-288.448262,0.00016886,2]
[403172810,1769242246496,-151.0,0.00016886,2]
[403172811,1769242246506,-151.0,0.00016886,2]
[403172812,1769242246515,-2008.38128925,0.00016895,2]
[403172813,1769242246524,-500.0,0.00016895,2]
[403172814,1769242246533,-150.0,0.00016898,2]
[403172815,1769242246543,-7900.0,0.000169,6]
[403172816,1769242246552,-150.0,0.0001692,2]
[403172817,1769242246562,-300.0,0.00016921,2]
[403172818,1769242246572,-300.0,0.00016921,2]
[403172819,1769242246580,-396.63383466,0.00016921,2]
[403172820,1769242246590,-308.53168343,0.00016921,2]
[403172821,1769242246599,-151.363707,0.00016922,2]
[403172822,1769242246608,-151.363707,0.00016922,2]
[403172823,1769242246617,-151.363707,0.00016922,2]
[403172824,1769242246627,-151.363707,0.00016922,2]
[403172826,1769242246636,-1055.54,0.0001694,2]
[403172827,1769242246647,-242.66118906,0.00016964,2]
[403172828,1769242246658,-333.29,0.00016965,2]
[403172829,1769242246670,-300.0,0.00016967,2]
[403172830,1769242246682,-300.0,0.00016967,2]
[403172831,1769242246691,-151.0,0.00016968,2]
[403172832,1769242246701,-151.0,0.00016968,2]
[403172833,1769242246712,-188.908359,0.00016968,2]
[403172834,1769242246722,-894.892771,0.00016968,2]
[403172835,1769242246733,-894.892771,0.00016968,2]
[403172836,1769242246744,-894.892771,0.00016968,2]
[403172837,1769242246754,-894.892771,0.00016968,2]
[403172838,1769242246763,-1500.0,0.00016968,2]
[403172839,1769242246774,-506.12715813,0.00016968,2]
[403172840,1769242246784,-1170.84413701,0.00016968,2]
[403172841,1769242246794,-1500.0,0.00016968,2]
[403172842,1769242246803,-968.22738324,0.00016968,2]
[403172843,1769242246814,-1500.0,0.00016968,2]
[403172844,1769242246823,-1500.0,0.00016968,2]
[403172845,1769242246832,-1500.0,0.00016968,2]
[403172846,1769242246842,-1500.0,0.00016968,2]
[403172847,1769242246852,-1500.0,0.00016968,2]
[403172848,1769242246861,-1500.0,0.00016968,2]
[403172849,1769242246870,-1505.53517306,0.00016968,2]
[403172850,1769242246880,-1500.0,0.00016968,2]
[403172851,1769242246890,-1500.0,0.00016968,2]
[403172852,1769242246900,-841.02773026,0.00016968,2]
[403172853,1769242246910,-1500.0,0.00016968,2]
[403172854,1769242246920,-1409.24156353,0.00016968,2]
[403172855,1769242246933,-1500.0,0.00016968,2]
[403172856,1769242246943,-1500.0,0.00016968,2]
[403172857,1769242246954,-1500.0,0.00016968,2]
[403172858,1769242246963,-1500.0,0.00016968,2]
[403172859,1769242246973,-1500.0,0.00016968,2]
[403172860,1769242246984,-1417.62986691,0.00016968,2]
[403172861,1769242246995,-1500.0,0.00016968,2]
[403172862,1769242247006,-1500.0,0.00016968,2]
[403172863,1769242247257,-503.96785498,0.00016968,2]
[403172864,1769242247267,-153.37934745,0.00016968,2]
[403172865,1769242247276,-551.89,0.00016986,2]
[403172866,1769242247286,-1000.0,0.00016986,2]
[403172867,1769242247295,-754.92,0.00016989,2]
[403172868,1769242247304,-150.0,0.00016992,2]
[403172869,1769242247315,-160.0,0.00017,2]
[403172870,1769242247326,-3000.0,0.00017,2]
[403172871,1769242247335,-3881.0,0.00017,2]
[403172872,1769242247344,-250.0,0.00017,2]
[403172873,1769242247354,-359.76179104,0.00017029,2]
[403172874,1769242247363,-1000.0,0.00017039,2]
[403172875,1769242247373,-836.0,0.0001704,2]
[403172876,1769242247383,-836.0,0.0001704,2]
[403172877,1769242247392,-484.52,0.00017041,2]
[403172878,1769242247401,-707.41,0.00017041,2]
[403172879,1769242247411,-484.52,0.00017041,2]
[403172880,1769242247420,-484.52,0.00017041,2]
[403172881,1769242247430,-484.52,0.00017041,2]
[403172882,1769242247439,-2053.65,0.00017059,2]
[403172883,1769242247448,-150.0,0.00017064,2]
[403172884,1769242247457,-1000.0,0.00017086,2]
[403172885,1769242247468,-152.0,0.0001709,9]
[403172886,1769242247477,-1000.0,0.00017112,2]
[403172887,1769242247486,-916.0,0.0001712,2]
[403172888,1769242247496,-1203.0,0.0001712,2]
[403172889,1769242247506,-4830.0,0.0001712,2]
[403172890,1769242247515,-2442.0,0.0001712,2]
[403172891,1769242247525,-6568.0,0.0001712,2]
[403172892,1769242247535,-151.74984917,0.00017129,2]
[403172893,1769242247545,-150.0,0.00017136,2]
[403172894,1769242247554,-558.65,0.00017178,2]
[403172895,1769242247564,-179.89,0.00017178,2]
[403172896,1769242247573,-172.14,0.00017178,2]
[403172897,1769242247583,-150.0,0.00017178,2]
[403172898,1769242247592,-468.53,0.00017178,2]
[403172899,1769242247602,-179.89,0.00017178,2]
[403172900,1769242247611,-172.14,0.00017178,2]
[403172901,1769242247620,-558.65,0.00017178,2]
[403172902,1769242247629,-468.53,0.00017178,2]
[403172903,1769242247638,-558.65,0.00017178,2]
[403172904,1769242247649,-179.89,0.00017178,2]
[403172905,1769242247659,-172.14,0.00017178,2]
[403172906,1769242247672,-150.0,0.00017178,2]
[403172907,1769242247682,-468.53,0.00017178,2]
[403172908,1769242247692,-179.89,0.00017178,2]
[403172909,1769242247701,-204.44,0.00017178,2]
[403172910,1769242247712,-468.53,0.00017178,2]
[403172911,1769242247722,-172.14,0.00017178,2]
[403172912,1769242247731,-179.89,0.00017178,2]
[403172913,1769242247742,-172.14,0.00017178,2]
[403172914,1769242247751,-468.53,0.00017178,2]
[403172915,1769242247760,-150.0,0.00017178,2]
[403172916,1769242247769,-359.78,0.00017178,2]
[403172917,1769242247778,-344.28,0.00017178,2]
[403172918,1769242247787,-937.06,0.00017178,2]
[403172919,1769242247797,-150.0,0.00017178,2]
[403172920,1769242247806,-200.0,0.00017189,2]
[403172921,1769242247815,-2332.22150674,0.000172,2]
[403172922,1769242247825,-191.471725,0.000172,2]
[403172923,1769242247833,-200.0,0.00017206,2]
[403172924,1769242247843,-150.0,0.00017208,2]
[403172925,1769242247852,-800.0,0.0001726,2]
[403172926,1769242247861,-834.0,0.0001726,2]
[403172927,1769242247870,-200.0,0.0001726,2]
[403172928,1769242247879,-200.0,0.0001726,2]
[403172929,1769242247888,-200.0,0.0001726,2]
[403172930,1769242247898,-200.0,0.0001726,2]
[403172931,1769242247908,-200.0,0.0001726,2]
[403172932,1769242247917,-200.0,0.0001726,2]
[403172933,1769242247926,-200.0,0.0001726,2]
[403172934,1769242247935,-200.0,0.0001726,2]
[403172935,1769242247945,-200.0,0.0001726,2]
[403172936,1769242247954,-200.0,0.0001726,2]
[403172937,1769242247964,-200.0,0.0001726,2]
[403172938,1769242247973,-200.0,0.0001726,2]
[403172939,1769242247983,-200.0,0.0001726,2]
[403172940,1769242247992,-200.0,0.0001726,2]
[403172941,1769242248001,-200.0,0.0001726,2]
[403172942,1769242248011,-200.0,0.0001726,2]
[403172943,1769242248021,-200.0,0.0001726,2]
[403172944,1769242248031,-200.0,0.0001726,2]
[403172945,1769242248040,-200.0,0.0001726,2]
[403172946,1769242248049,-200.0,0.0001726,2]
[403172947,1769242248059,-200.0,0.0001726,2]
[403172948,1769242248068,-200.0,0.0001726,2]
[403172949,1769242248078,-200.0,0.0001726,2]
[403172950,1769242248087,-200.0,0.0001726,2]
[403172951,1769242248096,-200.0,0.0001726,2]
[403172952,1769242248106,-500.0,0.0001726,2]
[403172953,1769242248115,-200.0,0.0001726,2]
[403172954,1769242248124,-200.0,0.0001726,2]
[403172955,1769242248134,-200.0,0.0001726,2]
[403172956,1769242248143,-200.0,0.0001726,2]
[403172957,1769242248153,-200.0,0.0001726,2]
[403172958,1769242248162,-200.0,0.0001726,2]
[403172959,1769242248172,-200.0,0.0001726,2]
[403172960,1769242248181,-200.0,0.0001726,2]
[403172961,1769242248191,-200.0,0.0001726,2]
[403172962,1769242248200,-200.0,0.0001726,2]
[403172963,1769242248210,-200.0,0.0001726,2]
[403172964,1769242248219,-188.0,0.0001726,2]
[403172965,1769242248228,-617.0,0.0001726,2]
[403172966,1769242248237,-1000.0,0.0001726,2]
[403172967,1769242248247,-150.0,0.00017264,2]
[403172968,1769242248258,-300.0,0.00017264,2]
[403172969,1769242248268,-300.0,0.00017264,2]
[403172970,1769242248277,-300.0,0.00017264,2]
[403172971,1769242248286,-300.0,0.00017264,2]
[403172972,1769242248297,-300.0,0.00017264,2]
[403172973,1769242248306,-300.0,0.00017264,2]
[403172974,1769242248316,-151.0,0.00017265,2]
[403172975,1769242248325,-151.0,0.00017265,2]
[403172976,1769242248335,-151.0,0.00017265,2]
[403172977,1769242248344,-181669.5670641,0.00017265,2]
[403172978,1769242248354,-150.0,0.0001728,2]
[403172979,1769242248364,-3677.32412085,0.00017293,2]
[403172980,1769242248374,-300.0,0.00017299,2]
[403172981,1769242248384,-308.5481913,0.00017299,2]
[403172982,1769242248393,-300.0,0.00017299,2]
[403172983,1769242248404,-300.0,0.00017299,2]
[403172984,1769242248414,-37928.87774032,0.000173,2]
[403172985,1769242248423,-2332.22150667,0.000173,2]
[403172986,1769242248434,-151.363707,0.000173,2]
[403172987,1769242248445,-151.363707,0.000173,2]
[403172988,1769242248455,-151.363707,0.000173,2]
[403172989,1769242248465,-151.363707,0.000173,2]
[403172990,1769242248475,-439.049769,0.000173,2]
[403172991,1769242248485,-439.049769,0.000173,2]
[403172992,1769242248495,-439.049769,0.000173,2]
[403172993,1769242248504,-439.049769,0.000173,2]
[403172994,1769242248514,-151.0,0.000173,2]
[403172995,1769242248524,-151.0,0.000173,2]
[403172996,1769242248534,-151.0,0.000173,2]
[403172997,1769242248555,-151.0,0.000173,2]
[403172998,1769242248574,-298.870718,0.000173,2]
[403172999,1769242248586,-10500.0,0.000173,6]
[403173000,1769242248598,-233.51889341,0.00017306,2]
[403173001,1769242248609,-152.0,0.00017308,10]
[403173002,1769242248619,-1703.1,0.00017311,2]
[403173003,1769242248643,-331.15868013,0.0001732,2]
[403173004,1769242248664,-4721.62468318,0.00017322,2]
[403173005,1769242248683,-200.0,0.00017332,2]
[403173006,1769242248700,-150.0,0.00017352,2]
[403173007,1769242248710,-800.0,0.00017352,2]
[403173008,1769242248720,-151.0,0.00017352,2]
[403173009,1769242248733,-151.0,0.00017352,2]
[403173010,1769242248746,-894.892771,0.00017352,2]
[403173011,1769242248759,-894.892771,0.00017352,2]
[403173012,1769242248770,-894.892771,0.00017352,2]
[403173013,1769242248782,-894.892771,0.00017352,2]
[403173014,1769242248792,-170.92,0.00017371,2]
[403173015,1769242248804,-1703.1,0.00017374,2]
[403173016,1769242248814,-7069.08068445,0.0001739,2]
[403173017,1769242248825,-209.76,0.00017393,2]
[403173018,1769242248835,-150.0,0.00017395,2]
[403173019,1769242248845,-150.0,0.00017395,2]
[403173020,1769242248855,-150.0,0.00017395,2]
[403173021,1769242248865,-150.0,0.00017395,2]
[403173022,1769242248875,-150.0,0.00017395,2]
[403173023,1769242248886,-150.0,0.00017395,2]
[403173024,1769242248898,-150.0,0.00017395,2]
[403173025,1769242248911,-150.0,0.00017395,2]
[403173026,1769242248922,-150.0,0.00017395,2]
[403173027,1769242248935,-150.0,0.00017395,2]
[403173028,1769242248947,-150.0,0.00017395,2]
[403173029,1769242248958,-150.0,0.00017395,2]
[403173030,1769242248968,-3476.0,0.00017395,2]
[403173031,1769242248978,-615.0,0.00017395,2]
[403173032,1769242248990,-1408.0,0.00017395,2]
[403173033,1769242249000,-1269.0,0.00017395,2]
[403173034,1769242249010,-2332.22150667,0.000174,2]
[403173035,1769242249021,-13200.0,0.000174,6]
[403173036,1769242249032,-3677.32412081,0.00017414,2]
[403173037,1769242249043,-150.0,0.00017424,2]
[403173038,1769242249053,-170.92,0.00017435,2]
[403173039,1769242249063,-1703.1,0.00017436,2]
[403173040,1769242249073,-1000.0,0.00017449,2]
[403173041,1769242249083,-209.76,0.00017464,2]
[403173042,1769242249092,-926.93726002,0.00017484,2]
[403173043,1769242249102,-200.0,0.00017493,2]
[403173044,1769242249111,-606.56,0.00017495,2]
[403173045,1769242249120,-150.0,0.00017496,2]
[403173046,1769242249130,-1703.1,0.00017499,2]
[403173047,1769242249139,-1189.38769854,0.000175,3]
[403173048,1769242249148,-9577.0107416,0.000175,2]
[403173049,1769242249158,-9301.43742151,0.000175,2]
[403173050,1769242249167,-2332.22150667,0.000175,2]
[403173051,1769242249177,-2600.0,0.000175,6]
[403173052,1769242249186,-506.85151747,0.00017516,2]
[403173053,1769242249196,-2008.17510359,0.00017516,2]
[403173054,1769242249205,-2000.0,0.00017516,2]
[403173055,1769242249215,-1508.23021218,0.00017516,2]
[403173056,1769242249224,-2000.0,0.00017516,2]
[403173057,1769242249233,-500.77696741,0.00017516,2]
[403173058,1769242249243,-2000.0,0.00017516,2]
[403173059,1769242249252,-2000.0,0.00017516,2]
[403173060,1769242249262,-1345.63815331,0.00017516,2]
[403173061,1769242249271,-610.88906686,0.00017516,2]
[403173062,1769242249281,-1519.79945563,0.00017516,2]
[403173063,1769242249292,-2000.0,0.00017516,2]
[403173064,1769242249302,-2000.0,0.00017516,2]
[403173065,1769242249311,-2000.0,0.00017516,2]
[403173066,1769242249321,-2000.0,0.00017516,2]
[403173067,1769242249330,-2000.0,0.00017516,2]
[403173068,1769242249339,-2000.0,0.00017516,2]
[403173069,1769242249348,-507.95507628,0.00017516,2]
[403173070,1769242249358,-200.0,0.00017519,3]
[403173071,1769242249367,-152.0,0.00017525,11]
[403173072,1769242249378,-500.0,0.00017534,7]
[403173073,1769242249387,-500.0,0.00017534,7]
[403173074,1769242249397,-1000.0,0.00017534,2]
[403173075,1769242249408,-3677.32412081,0.00017536,2]
[403173076,1769242249420,-1703.1,0.00017562,2]
[403173077,1769242249430,-150.0,0.00017568,2]
[403173078,1769242249442,-601.31337833,0.0001757,2]
[403173079,1769242249451,-1425.13914229,0.0001757,2]
[403173080,1769242249462,-500.0,0.0001757,2]
[403173081,1769242249473,-1000.0,0.0001757,2]
[403173082,1769242249484,-150.0,0.00017594,2]
[403173083,1769242249494,-2332.22150667,0.000176,2]
[403173084,1769242249504,-151.0,0.000176,2]
[403173085,1769242249514,-151.0,0.000176,2]
[403173086,1769242249526,-151.0,0.000176,2]
[403173087,1769242249535,-192.28780433,0.000176,2]
[403173088,1769242249545,-151.0,0.000176,2]
[403173089,1769242249554,-151.0,0.000176,2]
[403173090,1769242249564,-151.0,0.000176,2]
[403173091,1769242249573,-151.0,0.000176,2]
[403173092,1769242249584,-151.0,0.000176,2]
[403173093,1769242249594,-151.0,0.000176,2]
[403173094,1769242249605,-151.0,0.000176,2]
[403173095,1769242249616,-151.0,0.000176,2]
[403173096,1769242249626,-151.0,0.000176,2]
[403173097,1769242249636,-151.0,0.000176,2]
[403173098,1769242249646,-151.0,0.000176,2]
[403173099,1769242249655,-166.39156659,0.000176,2]
[403173100,1769242249665,-151.0,0.000176,2]
[403173101,1769242249677,-151.0,0.000176,2]
[403173102,1769242249687,-151.0,0.000176,2]
[403173103,1769242249696,-151.0,0.000176,2]
[403173104,1769242249767,-151.0,0.000176,2]
[403173105,1769242249777,-152.01987021,0.000176,2]
[403173106,1769242249786,-2600.0,0.000176,6]
[403173107,1769242249795,-1703.1,0.00017624,2]
[403173108,1769242249804,-150.0,0.0001764,2]
[403173109,1769242249813,-333.29,0.00017644,2]
[403173110,1769242249823,-3677.32412081,0.00017657,2]
[403173111,1769242249831,-158.81404097,0.00017678,2]
[403173112,1769242249840,-1703.1,0.00017687,2]
[403173113,1769242249849,-1265.0,0.00017689,2]
[403173114,1769242249859,-1265.0,0.00017689,2]
[403173115,1769242249869,-1265.0,0.00017689,2]
[403173116,1769242249878,-158.0,0.00017689,2]
[403173117,1769242249887,-2332.22150667,0.000177,2]
[403173118,1769242249898,-2600.0,0.000177,6]
[403173119,1769242249908,-1000.0,0.00017709,2]
[403173120,1769242249919,-150.0,0.00017712,2]
[403173121,1769242249929,-929.63069455,0.0001773,2]
[403173122,1769242249939,-152.0,0.00017742,12]
[403173123,1769242249947,-1703.1,0.00017749,2]
[403173124,1769242249958,-3677.32412081,0.00017779,2]
[403173125,1769242249967,-150.0,0.00017784,2]
[403173126,1769242249976,-2332.22150667,0.000178,2]
[403173127,1769242249985,-926.0,0.000178,2]
[403173128,1769242249995,-201.0,0.000178,2]
[403173129,1769242250005,-604.0,0.000178,2]
[403173130,1769242250015,-982.0,0.000178,2]
[403173131,1769242250026,-2600.0,0.000178,6]
[403173132,1769242250036,-172.8753019,0.00017806,2]
[403173133,1769242250047,-249.63829755,0.00017807,2]
[403173134,1769242250056,-606.56,0.00017807,2]
[403173135,1769242250066,-754.92,0.00017807,2]
[403173136,1769242250075,-500.0,0.00017807,2]
[403173137,1769242250084,-500.0,0.00017807,2]
[403173138,1769242250093,-1050.88046112,0.00017807,5]
[403173139,1769242250103,-300.0,0.00017807,2]
[403173140,1769242250111,-300.0,0.00017807,2]
[403173141,1769242250121,-500.0,0.00017808,2]
[403173142,1769242250130,-151.363707,0.00017808,2]
[403173143,1769242250139,-151.363707,0.00017808,2]
[403173144,1769242250148,-151.363707,0.00017808,2]
[403173145,1769242250157,-151.363707,0.00017808,2]
[403173146,1769242250166,-151.0,0.00017808,2]
[403173147,1769242250175,-192.492462,0.00017808,2]
[403173148,1769242250184,-894.892771,0.00017808,2]
[403173149,1769242250194,-894.892771,0.00017808,2]
[403173150,1769242250203,-894.892771,0.00017808,2]
[403173151,1769242250212,-894.892771,0.00017808,2]
[403173152,1769242250221,-300.0,0.00017808,3]
[403173153,1769242250231,-300.0,0.00017808,3]
[403173154,1769242250241,-300.0,0.00017808,3]
[403173155,1769242250250,-300.0,0.00017808,3]
[403173156,1769242250259,-300.0,0.00017808,3]
[403173157,1769242250268,-439.049769,0.00017808,2]
[403173158,1769242250279,-439.049769,0.00017808,2]
[403173159,1769242250288,-439.049769,0.00017808,2]
[403173160,1769242250298,-439.049769,0.00017808,2]
[403173161,1769242250307,-151.0,0.00017808,2]
[403173162,1769242250318,-151.0,0.00017808,2]
[403173163,1769242250327,-151.0,0.00017808,2]
[403173164,1769242250335,-151.0,0.00017808,2]
[403173165,1769242250344,-151.0,0.00017808,2]
[403173166,1769242250354,-151.0,0.00017808,2]
[403173167,1769242250363,-151.0,0.00017808,2]
[403173168,1769242250372,-161.265645,0.00017808,2]
[403173169,1769242250381,-151.0,0.00017808,2]
[403173170,1769242250391,-151.0,0.00017808,2]
[403173171,1769242250400,-151.0,0.00017808,2]
[403173172,1769242250409,-151.0,0.00017808,2]
[403173173,1769242250418,-187.300974,0.00017808,2]
[403173174,1769242250427,-151.0,0.00017808,2]
[403173175,1769242250437,-151.0,0.00017808,2]
[403173176,1769242250447,-151.0,0.00017808,2]
[403173177,1769242250457,-279.673858,0.00017808,2]
[403173178,1769242250467,-151.0,0.00017808,2]
[403173179,1769242250477,-151.0,0.00017808,2]
[403173180,1769242250486,-151.0,0.00017808,2]
[403173181,1769242250497,-151.0,0.00017808,2]
[403173182,1769242250507,-151.0,0.00017808,2]
[403173183,1769242250517,-151.0,0.00017808,2]
[403173184,1769242250526,-155.547063,0.00017808,2]
[403173185,1769242250536,-151.0,0.00017808,2]
[403173186,1769242250545,-151.0,0.00017808,2]
[403173187,1769242250555,-151.0,0.00017808,2]
[403173188,1769242250563,-151.0,0.00017808,2]
[403173189,1769242250572,-151.0,0.00017808,2]
[403173190,1769242250581,-155.36435,0.00017808,2]
[403173191,1769242250590,-151.0,0.00017808,2]
[403173192,1769242250599,-500.0,0.00017808,2]
[403173193,1769242250609,-500.0,0.00017808,2]
[403173194,1769242250619,-151.0,0.00017808,2]
[403173195,1769242250630,-500.0,0.00017808,2]
[403173196,1769242250640,-151.0,0.00017808,2]
[403173197,1769242250649,-500.0,0.00017808,2]
[403173198,1769242250658,-500.0,0.00017808,2]
[403173199,1769242250667,-500.0,0.00017808,2]
[403173200,1769242250679,-500.0,0.00017808,2]
[403173201,1769242250689,-500.0,0.00017808,2]
[403173202,1769242250700,-500.0,0.00017808,2]
[403173203,1769242250711,-151.0,0.00017808,2]
[403173204,1769242250719,-151.0,0.00017808,2]
[403173205,1769242250728,-161.15152,0.00017808,2]
[403173206,1769242250737,-500.0,0.00017808,2]
[403173207,1769242250749,-500.0,0.00017808,2]
[403173208,1769242250758,-500.0,0.00017808,2]
[403173209,1769242250767,-151.0,0.00017808,2]
[403173210,1769242250777,-244.1193,0.00017808,2]
[403173211,1769242250786,-153.831139,0.00017808,2]
[403173212,1769242250796,-151.0,0.00017808,2]
[403173213,1769242250806,-151.0,0.00017808,2]
[403173214,1769242250815,-151.0,0.00017808,2]
[403173215,1769242250825,-156.796935,0.00017808,2]
[403173216,1769242250834,-151.0,0.00017808,2]
[403173217,1769242250843,-151.0,0.00017808,2]
[403173218,1769242250853,-151.0,0.00017808,2]
[403173219,1769242250862,-151.0,0.00017808,2]
[403173220,1769242250871,-151.0,0.00017808,2]
[403173221,1769242250881,-151.0,0.00017808,2]
[403173222,1769242250890,-151.0,0.00017808,2]
[403173223,1769242250900,-151.0,0.00017808,2]
[403173224,1769242250909,-151.0,0.00017808,2]
[403173225,1769242250918,-158.251279,0.00017808,2]
[403173226,1769242250927,-151.0,0.00017808,2]
[403173227,1769242250936,-151.0,0.00017808,2]
[403173228,1769242250945,-151.0,0.00017808,2]
[403173229,1769242250954,-151.0,0.00017808,2]
[403173230,1769242250963,-151.0,0.00017808,2]
[403173231,1769242250972,-151.0,0.00017808,2]
[403173232,1769242250981,-153.458028,0.00017808,2]
[403173233,1769242250990,-151.0,0.00017808,2]
[403173234,1769242250999,-151.0,0.00017808,2]
[403173235,1769242251009,-151.0,0.00017808,2]
[403173236,1769242251017,-151.0,0.00017808,2]
[403173237,1769242251027,-151.0,0.00017808,2]
[403173238,1769242251036,-151.0,0.00017808,2]
[403173239,1769242251045,-151.0,0.00017808,2]
[403173240,1769242251053,-151.850954,0.00017808,2]
[403173241,1769242251063,-151.0,0.00017808,2]
[403173242,1769242251072,-151.0,0.00017808,2]
[403173243,1769242251083,-151.0,0.00017808,2]
[403173244,1769242251093,-151.0,0.00017808,2]
[403173245,1769242251103,-151.0,0.00017808,2]
[403173246,1769242251114,-151.0,0.00017808,2]
[403173247,1769242251126,-151.0,0.00017808,2]
[403173248,1769242251136,-151.0,0.00017808,2]
[403173249,1769242251145,-151.0,0.00017808,2]
[403173250,1769242251154,-151.0,0.00017808,2]
[403173251,1769242251164,-151.0,0.00017808,2]
[403173252,1769242251175,-162.866659,0.00017808,2]
[403173253,1769242251186,-151.0,0.00017808,2]
[403173254,1769242251198,-151.0,0.00017808,2]
[403173255,1769242251217,-196.072022,0.00017808,2]
[403173256,1769242251228,-151.0,0.00017808,2]
[403173257,1769242251238,-224.371977,0.00017808,2]
[403173258,1769242251248,-151.0,0.00017808,2]
[403173259,1769242251257,-153.453384,0.00017808,2]
[403173260,1769242251266,-151.0,0.00017808,2]